[Event "*** Titled Tuesday Blitz"]
[Site "Chess.com"]
[Date "2020.02.04"]
[Round "9"]
[White "Hrant_ChessMood"]
[Black "olksuna"]
[Result "1-0"]
[WhiteElo "2899"]
[BlackElo "2618"]
[TimeControl "180+2"]
[EndTime "15:10:24 PST"]
[Termination "Hrant_ChessMood won on time"]

1. e4 {[%clk 0:02:55.6]} 1... d6 {[%clk 0:02:59.2]} 2. d4 {[%clk 0:02:55.3]}
2... Nf6 {[%clk 0:03:00.7]} 3. Nc3 {[%clk 0:02:56.4]} 3... Nbd7 {[%clk
0:03:01.8]} 4. Nf3 {[%clk 0:02:55.4]} 4... e5 {[%clk 0:03:02.9]} 5. Bc4 {[%clk
0:02:55.8]} 5... Be7 {[%clk 0:03:04.4]} 6. a4 {[%clk 0:02:55.8]} 6... O-O {[%clk
0:03:05]} 7. a5 {[%clk 0:02:55.4]} 7... c6 {[%clk 0:03:03.4]} 8. O-O {[%clk
0:02:55.8]} 8... Qc7 {[%clk 0:03:04.6]} 9. Qe2 {[%clk 0:02:51.7]} 9... exd4
{[%clk 0:03:04.6]} 10. Nxd4 {[%clk 0:02:52.4]} 10... Ne5 {[%clk 0:03:06.2]} 11.
Bb3 {[%clk 0:02:53.2]} 11... Bd7 {[%clk 0:03:05.9]} 12. f4 {[%clk 0:02:47.7]}
12... Ng6 {[%clk 0:03:05.8]} 13. h3 {[%clk 0:02:32.3]} 13... Rfe8 {[%clk
0:02:57]} 14. Be3 {[%clk 0:02:32.5]} 14... b5 {[%clk 0:02:48.4]} 15. axb6 {[%clk
0:02:30.4]} 15... axb6 {[%clk 0:02:50.3]} 16. Rxa8 {[%clk 0:02:31.7]} 16... Rxa8
{[%clk 0:02:51.3]} 17. Qf3 {[%clk 0:02:27.1]} 17... b5 {[%clk 0:02:45]} 18.
Ncxb5 {[%clk 0:01:59.8]} 18... cxb5 {[%clk 0:02:34.4]} 19. e5 {[%clk 0:02:00.7]}
19... Re8 {[%clk 0:02:23.5]} 20. exf6 {[%clk 0:02:01.3]} 20... Bxf6 {[%clk
0:02:25.4]} 21. Qd5 {[%clk 0:01:51.8]} 21... Re7 {[%clk 0:02:02.1]} 22. Ra1
{[%clk 0:01:38.8]} 22... h6 {[%clk 0:01:53.6]} 23. Bd2 {[%clk 0:01:20.1]} 23...
Qc5 {[%clk 0:01:46.6]} 24. c3 {[%clk 0:01:14.9]} 24... b4 {[%clk 0:01:32.6]} 25.
Qxc5 {[%clk 0:00:49]} 25... dxc5 {[%clk 0:01:33.3]} 26. Nf3 {[%clk 0:00:50.9]}
26... bxc3 {[%clk 0:01:26.1]} 27. bxc3 {[%clk 0:00:52.8]} 27... Bc6 {[%clk
0:01:20.5]} 28. Kf2 {[%clk 0:00:52.6]} 28... Rb7 {[%clk 0:01:06.7]} 29. Ra3
{[%clk 0:00:53.8]} 29... Nh4 {[%clk 0:00:40.1]} 30. Nxh4 {[%clk 0:00:42]} 30...
Bxh4+ {[%clk 0:00:42]} 31. g3 {[%clk 0:00:43.9]} 31... Be7 {[%clk 0:00:43.3]}
32. Bc4 {[%clk 0:00:31.6]} 32... g6 {[%clk 0:00:36.1]} 33. Ra6 {[%clk
0:00:30.6]} 33... Be4 {[%clk 0:00:36.9]} 34. Ke3 {[%clk 0:00:27.1]} 34... Bb1
{[%clk 0:00:35.7]} 35. Bd5 {[%clk 0:00:21.3]} 35... Rb2 {[%clk 0:00:26.3]} 36.
c4 {[%clk 0:00:18.8]} 36... Rb8 {[%clk 0:00:22.6]} 37. Bc3 {[%clk 0:00:18.5]}
37... Re8 {[%clk 0:00:22.8]} 38. Kd2 {[%clk 0:00:19.4]} 38... Bf8 {[%clk
0:00:18.7]} 39. Ra7 {[%clk 0:00:19.4]} 39... Re7 {[%clk 0:00:20.1]} 40. Ra8
{[%clk 0:00:20.1]} 40... Bf5 {[%clk 0:00:17.7]} 41. g4 {[%clk 0:00:19.6]} 41...
Be6 {[%clk 0:00:16.3]} 42. Kd3 {[%clk 0:00:16.5]} 42... Rd7 {[%clk 0:00:13.4]}
43. Ke4 {[%clk 0:00:17.6]} 43... Re7 {[%clk 0:00:14.9]} 44. Kf3 {[%clk
0:00:18.4]} 44... Rd7 {[%clk 0:00:15.5]} 45. Ke4 {[%clk 0:00:19.3]} 45... Re7
{[%clk 0:00:16]} 46. Be5 {[%clk 0:00:20.9]} 46... f5+ {[%clk 0:00:14.9]} 47. Kf3
{[%clk 0:00:17.7]} 47... Bxd5+ {[%clk 0:00:12.3]} 48. cxd5 {[%clk 0:00:19.6]}
48... Rd7 {[%clk 0:00:13.9]} 49. Ra6 {[%clk 0:00:14.8]} 49... fxg4+ {[%clk
0:00:12.3]} 50. hxg4 {[%clk 0:00:16.7]} 50... Kf7 {[%clk 0:00:13.2]} 51. Rf6+
{[%clk 0:00:17.1]} 51... Ke8 {[%clk 0:00:12.2]} 52. Ke4 {[%clk 0:00:15.8]} 52...
g5 {[%clk 0:00:08.9]} 53. f5 {[%clk 0:00:15.1]} 53... c4 {[%clk 0:00:09.5]} 54.
Re6+ {[%clk 0:00:16.2]} 54... Kf7 {[%clk 0:00:09.1]} 55. Rc6 {[%clk 0:00:15.9]}
55... Re7 {[%clk 0:00:08.8]} 56. f6 {[%clk 0:00:16.3]} 56... Re8 {[%clk
0:00:08.9]} 57. Kf5 {[%clk 0:00:14.1]} 1-0

[Event "*** Titled Tuesday Blitz"]
[Site "Chess.com"]
[Date "2020.02.04"]
[Round "9"]
[White "Gogolev_Artemy"]
[Black "Barcelona_Guy"]
[Result "1/2-1/2"]
[WhiteElo "2527"]
[BlackElo "2635"]
[TimeControl "180+2"]
[EndTime "15:10:32 PST"]
[Termination "Game drawn by repetition"]

1. d4 {[%clk 0:03:01.9]} 1... Nf6 {[%clk 0:03:00.6]} 2. c4 {[%clk 0:02:59.4]}
2... g6 {[%clk 0:03:02]} 3. g3 {[%clk 0:02:55.6]} 3... Bg7 {[%clk 0:03:02.4]} 4.
Bg2 {[%clk 0:02:57.1]} 4... d5 {[%clk 0:03:03.9]} 5. Nf3 {[%clk 0:02:54.9]} 5...
dxc4 {[%clk 0:03:01.7]} 6. Na3 {[%clk 0:02:51.9]} 6... O-O {[%clk 0:03:02.7]} 7.
Nxc4 {[%clk 0:02:51.9]} 7... c5 {[%clk 0:02:52]} 8. O-O {[%clk 0:02:51.8]} 8...
Be6 {[%clk 0:02:48.4]} 9. Nce5 {[%clk 0:02:48.8]} 9... cxd4 {[%clk 0:02:46.3]}
10. Nxd4 {[%clk 0:02:42.7]} 10... Bd5 {[%clk 0:02:46.7]} 11. Ndf3 {[%clk
0:02:31.3]} 11... Nc6 {[%clk 0:02:44.6]} 12. Bf4 {[%clk 0:02:28.8]} 12... Qa5
{[%clk 0:02:24.3]} 13. Bd2 {[%clk 0:02:07.8]} 13... Qa6 {[%clk 0:02:15.3]} 14.
Nxc6 {[%clk 0:02:00.8]} 14... Bxc6 {[%clk 0:02:14.8]} 15. Bc3 {[%clk 0:01:58.4]}
15... Rfd8 {[%clk 0:02:15.4]} 16. Qb3 {[%clk 0:01:51.7]} 16... Bd5 {[%clk
0:02:01.1]} 17. Qc2 {[%clk 0:01:37.8]} 17... Be4 {[%clk 0:02:01.6]} 18. Qb3
{[%clk 0:01:37.4]} 18... Qxe2 {[%clk 0:01:14.2]} 19. Rfe1 {[%clk 0:01:37.2]}
19... Qa6 {[%clk 0:01:15.1]} 20. Bxf6 {[%clk 0:01:12.8]} 20... Bd5 {[%clk
0:01:14.7]} 21. Bxg7 {[%clk 0:01:12.6]} 21... Bxb3 {[%clk 0:01:12.6]} 22. axb3
{[%clk 0:01:13.2]} 22... Qxa1 {[%clk 0:01:08.4]} 23. Rxa1 {[%clk 0:01:10.3]}
23... Kxg7 {[%clk 0:01:10]} 24. Ne5 {[%clk 0:01:05.5]} 24... Rac8 {[%clk
0:00:42.7]} 25. Bxb7 {[%clk 0:00:59.4]} 25... Rc2 {[%clk 0:00:43.6]} 26. Rxa7
{[%clk 0:00:29.3]} 26... Rd1+ {[%clk 0:00:42.4]} 27. Kg2 {[%clk 0:00:29.6]}
27... Rdd2 {[%clk 0:00:43.8]} 28. Be4 {[%clk 0:00:14.9]} 28... Rxf2+ {[%clk
0:00:25.2]} 29. Kg1 {[%clk 0:00:15.8]} 29... Rxb2 {[%clk 0:00:14.9]} 30. Nd3
{[%clk 0:00:16.3]} 30... Ra2 {[%clk 0:00:15.3]} 31. Nxf2 {[%clk 0:00:06.5]}
31... Rxa7 {[%clk 0:00:15.9]} 32. b4 {[%clk 0:00:07.9]} 32... f5 {[%clk
0:00:14.1]} 33. Bc6 {[%clk 0:00:07.7]} 33... e5 {[%clk 0:00:10.8]} 34. b5 {[%clk
0:00:06.9]} 34... Ra1+ {[%clk 0:00:12.4]} 35. Kg2 {[%clk 0:00:07.4]} 35... Rb1
{[%clk 0:00:14.3]} 36. Nd3 {[%clk 0:00:07.8]} 36... Kf6 {[%clk 0:00:13.8]} 37.
Nc5 {[%clk 0:00:07.8]} 37... e4 {[%clk 0:00:14.5]} 38. b6 {[%clk 0:00:09]} 38...
Ke5 {[%clk 0:00:08.4]} 39. b7 {[%clk 0:00:09]} 39... Kd6 {[%clk 0:00:09.7]} 40.
Nd7 {[%clk 0:00:09.8]} 40... Rb2+ {[%clk 0:00:07.2]} 41. Kf1 {[%clk 0:00:09.3]}
41... Rxb7 {[%clk 0:00:04.4]} 42. Bxb7 {[%clk 0:00:09.8]} 42... Kxd7 {[%clk
0:00:06.3]} 43. Kf2 {[%clk 0:00:10]} 43... Ke6 {[%clk 0:00:07.2]} 44. Ke3 {[%clk
0:00:11.2]} 44... Ke5 {[%clk 0:00:07.4]} 45. Bc6 {[%clk 0:00:11.4]} 45... h6
{[%clk 0:00:08]} 46. Be8 {[%clk 0:00:12.6]} 46... g5 {[%clk 0:00:09.1]} 47. Bg6
{[%clk 0:00:13.4]} 47... f4+ {[%clk 0:00:09]} 48. Ke2 {[%clk 0:00:14.5]} 48...
Kd4 {[%clk 0:00:09.4]} 49. Bf5 {[%clk 0:00:15]} 49... Ke5 {[%clk 0:00:09.9]} 50.
Bh7 {[%clk 0:00:15.7]} 50... Kd4 {[%clk 0:00:10.7]} 51. g4 {[%clk 0:00:16.3]}
51... Ke5 {[%clk 0:00:05.5]} 52. Bf5 {[%clk 0:00:17.1]} 52... Kd4 {[%clk
0:00:06.5]} 53. Bg6 {[%clk 0:00:17.7]} 53... Ke5 {[%clk 0:00:07.6]} 54. Kd2
{[%clk 0:00:18.7]} 54... Kd4 {[%clk 0:00:07.5]} 55. Be8 {[%clk 0:00:19.6]} 55...
f3 {[%clk 0:00:07.8]} 56. Bc6 {[%clk 0:00:19.6]} 56... e3+ {[%clk 0:00:04]} 57.
Ke1 {[%clk 0:00:19.3]} 57... f2+ {[%clk 0:00:04.7]} 58. Ke2 {[%clk 0:00:19.6]}
58... Ke5 {[%clk 0:00:05.7]} 59. Bg2 {[%clk 0:00:19.9]} 59... Kf4 {[%clk
0:00:06.6]} 60. h3 {[%clk 0:00:19.9]} 60... Kg3 {[%clk 0:00:07.7]} 61. Bf1
{[%clk 0:00:20.9]} 61... Kf4 {[%clk 0:00:07.8]} 62. Bg2 {[%clk 0:00:20.5]} 62...
Kg3 {[%clk 0:00:09]} 63. Bf1 {[%clk 0:00:21.2]} 63... Kf4 {[%clk 0:00:10.1]} 64.
Bg2 {[%clk 0:00:15.2]} 1/2-1/2